fUSD/lending_fUSD_20260517
["ID","MTS","AMOUNT","RATE_DAILY","PERIOD"]
[422443563,1778950243000,-1489.69,0.00029074,30]
[422443560,1778950243000,-218.34,0.00029074,30]
[422443559,1778950243000,-1491.44,0.00029074,30]
[422443557,1778950243000,-672.81,0.00029042,7]
[422443550,1778950243000,-672.81,0.0002901,2]
[422443575,1778950243000,-1489.69,0.00029105,2]
[422443558,1778950243000,-217.75,0.00029042,7]
[422443726,1778950244000,-172.0,0.00031138,30]
[422443727,1778950244000,-151.0,0.00031138,30]
[422443721,1778950244000,-516.0,0.00031133,30]
[422443719,1778950244000,-159.0,0.00031133,30]
[422443730,1778950244000,-500.0,0.00031178,2]
[422443731,1778950244000,-556.0,0.00031225,30]
[422443715,1778950244000,-237.0,0.00031061,2]
[422443713,1778950244000,-150.0,0.00031011,2]
[422443714,1778950244000,-274.49614436,0.0003105,30]
[422443711,1778950244000,-355.52736772,0.000306,7]
[422443716,1778950244000,-198.0,0.00031061,2]
[422443724,1778950244000,-687.0,0.00031133,30]
[422443720,1778950244000,-404.0,0.00031133,30]
[422443722,1778950244000,-162.0,0.00031133,30]
[422443735,1778950244000,-500.0,0.00031251,30]
[422443729,1778950244000,-157.0,0.00031141,30]
[422443723,1778950244000,-169.0,0.00031133,30]
[422443725,1778950244000,-216.0,0.00031138,30]
[422443732,1778950244000,-2438.0,0.00031225,30]
[422443736,1778950244000,-500.0,0.00031251,30]
[422443734,1778950244000,-500.0,0.00031251,30]
[422443712,1778950244000,-504.0,0.00030992,6]
[422443743,1778950244000,-11060.0,0.000314,2]
[422443745,1778950244000,-508.3447378,0.00031443,7]
[422443733,1778950244000,-500.0,0.00031251,30]
[422443739,1778950244000,-150.0,0.00031363,2]
[422443742,1778950244000,-284.0,0.00031363,2]
[422443740,1778950244000,-150.0,0.00031363,2]
[422443741,1778950244000,-150.0,0.00031363,2]
[422443728,1778950244000,-316.0,0.00031138,30]
[422443708,1778950244000,-383.15829158,0.00030551,7]
[422443701,1778950244000,-343.60438472,0.00030551,7]
[422443718,1778950244000,-154.0,0.00031133,30]
[422443679,1778950244000,-709.32,0.00030137,30]
[422443682,1778950244000,-1000.0,0.00030137,30]
[422443683,1778950244000,-274.49614436,0.00030137,30]
[422443687,1778950244000,-151.0,0.00030138,30]
[422443680,1778950244000,-200.0,0.00030137,2]
[422443681,1778950244000,-160.0,0.00030137,8]
[422443685,1778950244000,-216.0,0.00030138,30]
[422443690,1778950244000,-150.0,0.00030205,2]
[422443684,1778950244000,-150.0,0.00030137,30]
[422443691,1778950244000,-151.0,0.00030239,2]
[422443686,1778950244000,-172.0,0.00030138,30]
[422443688,1778950244000,-316.0,0.00030138,30]
[422443689,1778950244000,-157.0,0.00030141,30]
[422443692,1778950244000,-504.0,0.00030441,5]
[422443738,1778950244000,-776.79,0.000313,7]
[422443697,1778950244000,-350.49422135,0.00030537,7]
[422443695,1778950244000,-337.90384909,0.00030537,7]
[422443693,1778950244000,-525.25493388,0.00030537,7]
[422443705,1778950244000,-426.78499952,0.00030551,7]
[422443700,1778950244000,-152.1988811,0.00030547,7]
[422443702,1778950244000,-410.99985924,0.00030551,7]
[422443703,1778950244000,-393.18772187,0.00030551,7]
[422443698,1778950244000,-346.98618172,0.00030537,7]
[422443704,1778950244000,-308.92953621,0.00030551,7]
[422443699,1778950244000,-380.6494,0.00030547,7]
[422443710,1778950244000,-395.55243695,0.00030551,2]
[422443706,1778950244000,-203.48791504,0.00030551,7]
[422443709,1778950244000,-343.3611251,0.00030551,7]
[422443717,1778950244000,-200.0,0.00031096,2]
[422443707,1778950244000,-152.4793106,0.00030551,2]
[422443744,1778950244000,-787.88240082,0.00031443,7]
[422443694,1778950244000,-338.89649186,0.00030537,7]
[422443748,1778950244000,-525.74133203,0.00031443,7]
[422443776,1778950244000,-186.50660828,0.00031458,7]
[422443779,1778950244000,-288.12941558,0.00031458,7]
[422443778,1778950244000,-236.8125002,0.00031458,7]
[422443781,1778950244000,-164.74968649,0.00031458,7]
[422443782,1778950244000,-159.7360125,0.00031458,7]
[422443788,1778950244000,-515.04168764,0.00031458,7]
[422443786,1778950244000,-219.13025707,0.00031458,5]
[422443789,1778950244000,-593.32865543,0.00031458,2]
[422443797,1778950244000,-533.29105159,0.00031507,7]
[422443798,1778950244000,-504.0,0.00031542,6]
[422443787,1778950244000,-574.73743737,0.00031458,7]
[422443792,1778950244000,-601.17344495,0.00031495,2]
[422443791,1778950244000,-5228.94594966,0.00031495,2]
[422443793,1778950244000,-11064.80680074,0.00031495,2]
[422443780,1778950244000,-197.0535826,0.00031458,7]
[422443795,1778950244000,-1000.0,0.000315,7]
[422443794,1778950244000,-340.11462117,0.000315,2]
[422443796,1778950244000,-1000.0,0.00031507,40]
[422443806,1778950244000,-677.79298373,0.00032047,7]
[422443802,1778950244000,-163.87639104,0.00032,120]
[422443804,1778950244000,-214.87918331,0.00032,7]
[422443800,1778950244000,-314.06,0.000319,7]
[422443809,1778950244000,-272.47963967,0.00032047,7]
[422443799,1778950244000,-150.0,0.00031644,30]
[422443801,1778950244000,-274.49614436,0.00031963,30]
[422443810,1778950244000,-700.98844271,0.00032047,7]
[422443807,1778950244000,-675.80769819,0.00032047,7]
[422443803,1778950244000,-186.56694993,0.00032,120]
[422443808,1778950244000,-486.37682037,0.00032047,7]
[422443737,1778950244000,-500.0,0.00031251,30]
[422443790,1778950244000,-295.88566067,0.00031495,2]
[422443785,1778950244000,-304.9586212,0.00031458,2]
[422443805,1778950244000,-1050.50986776,0.00032047,7]
[422443777,1778950244000,-263.08463938,0.00031458,7]
[422443749,1778950244000,-520.47927257,0.00031443,7]
[422443746,1778950244000,-506.85577364,0.00031443,7]
[422443753,1778950244000,-198.3289375,0.00031454,7]
[422443756,1778950244000,-227.12161104,0.00031454,7]
[422443754,1778950244000,-220.86062541,0.00031454,7]
[422443747,1778950244000,-243.18841018,0.00031443,7]
[422443751,1778950244000,-235.40456705,0.00031454,7]
[422443755,1778950244000,-570.97409999,0.00031454,7]
[422443775,1778950244000,-463.39430432,0.00031458,7]
[422443752,1778950244000,-219.0390906,0.00031454,7]
[422443758,1778950244000,-218.40123567,0.00031454,7]
[422443757,1778950244000,-210.13347422,0.00031454,7]
[422443760,1778950244000,-240.05975917,0.00031454,7]
[422443770,1778950244000,-249.88931955,0.00031458,7]
[422443771,1778950244000,-202.47897309,0.00031458,7]
[422443750,1778950244000,-267.57826875,0.00031454,7]
[422443769,1778950244000,-263.41735461,0.00031458,7]
[422443772,1778950244000,-616.49978886,0.00031458,7]
[422443759,1778950244000,-267.78755774,0.00031454,2]
[422443783,1778950244000,-640.17749928,0.00031458,7]
[422443784,1778950244000,-406.97583008,0.00031458,7]
[422443774,1778950244000,-222.45870305,0.00031458,7]
[422443768,1778950244000,-150.39059968,0.00031458,7]
[422443773,1778950244000,-589.78158281,0.00031458,7]
[422443762,1778950244000,-205.44142957,0.00031454,7]
[422443764,1778950244000,-205.02579286,0.00031454,7]
[422443761,1778950244000,-297.27242425,0.00031454,7]
[422443765,1778950244000,-208.18314273,0.00031454,7]
[422443763,1778950244000,-304.39776221,0.00031454,7]
[422443766,1778950244000,-276.58800368,0.00031454,7]
[422443767,1778950244000,-515.40657708,0.00031458,7]
[422443854,1778950245000,-687.20876945,0.00032062,7]
[422443848,1778950245000,-158.109826,0.00032058,7]
[422443855,1778950245000,-223.26412452,0.00032062,7]
[422443852,1778950245000,-330.28064784,0.00032062,7]
[422443853,1778950245000,-211.15253257,0.00032062,7]
[422443846,1778950245000,-173.89691175,0.00032058,7]
[422443849,1778950245000,-234.89448455,0.00032058,7]
[422443847,1778950245000,-456.59664331,0.00032058,7]
[422443850,1778950245000,-411.25833501,0.00032058,7]
[422443845,1778950245000,-279.27228348,0.00032058,7]
[422443844,1778950245000,-334.19979297,0.00032058,7]
[422443851,1778950245000,-553.17600737,0.00032058,7]
[422443858,1778950245000,-526.83470922,0.00032062,7]
[422443870,1778950245000,-526.16927876,0.00032062,7]
[422443860,1778950245000,-404.95794618,0.00032062,7]
[422443857,1778950245000,-300.78119937,0.00032062,7]
[422443859,1778950245000,-499.77863909,0.00032062,7]
[422443863,1778950245000,-433.76213694,0.00032062,7]
[422443865,1778950245000,-428.31015915,0.00032062,7]
[422443864,1778950245000,-240.31669485,0.00032062,7]
[422443861,1778950245000,-371.49257103,0.00032062,7]
[422443862,1778950245000,-821.99971847,0.00032062,7]
[422443869,1778950245000,-178.19889342,0.00032062,7]
[422443866,1778950245000,-786.37544374,0.00032062,7]
[422443872,1778950245000,-181.83867802,0.00032062,7]
[422443867,1778950245000,-444.91740611,0.00032062,7]
[422443873,1778950245000,-419.97618358,0.00032062,7]
[422443843,1778950245000,-226.89369012,0.00032058,7]
[422443856,1778950245000,-434.19958115,0.00032062,7]
[422443842,1778950245000,-410.88285913,0.00032058,7]
[422443826,1778950245000,-164.64211191,0.00032058,2]
[422443838,1778950245000,-436.80247134,0.00032058,7]
[422443871,1778950245000,-465.30198556,0.00032062,2]
[422443811,1778950245000,-350.12999705,0.00032047,5]
[422443813,1778950245000,-693.97236343,0.00032047,7]
[422443815,1778950245000,-200.0,0.00032055,2]
[422443814,1778950245000,-381.22812455,0.00032047,7]
[422443823,1778950245000,-213.35889344,0.00032058,7]
[422443824,1778950245000,-335.66322435,0.00032058,7]
[422443812,1778950245000,-229.09579216,0.00032047,7]
[422443820,1778950245000,-188.68721814,0.00032058,7]
[422443819,1778950245000,-535.15653751,0.00032058,7]
[422443818,1778950245000,-229.15800551,0.00032058,7]
[422443816,1778950245000,-157.44591693,0.00032058,7]
[422443817,1778950245000,-158.43826638,0.00032058,7]
[422443822,1778950245000,-438.07818121,0.00032058,7]
[422443821,1778950245000,-470.8091341,0.00032058,7]
[422443825,1778950245000,-168.45863393,0.00032058,2]
[422443831,1778950245000,-396.657875,0.00032058,7]
[422443829,1778950245000,-280.69460849,0.00032058,7]
[422443827,1778950245000,-345.51135963,0.00032058,7]
[422443828,1778950245000,-182.77276286,0.00032058,7]
[422443830,1778950245000,-347.68392629,0.00032058,7]
[422443834,1778950245000,-441.72125082,0.00032058,7]
[422443835,1778950245000,-200.82589408,0.00032058,7]
[422443833,1778950245000,-377.59928953,0.00032058,7]
[422443832,1778950245000,-382.98318061,0.00032058,7]
[422443836,1778950245000,-761.29879999,0.00032058,7]
[422443837,1778950245000,-301.79731275,0.00032058,7]
[422443839,1778950245000,-535.57511548,0.00032058,2]
[422443841,1778950245000,-594.5448485,0.00032058,7]
[422443840,1778950245000,-480.11951833,0.00032058,7]
[422443868,1778950245000,-617.85907243,0.00032062,7]
[422443875,1778950245000,-473.6250004,0.00032062,7]
[422443922,1778950245000,-150.0,0.00032657,2]
[422443911,1778950245000,-198.0,0.00032301,2]
[422443910,1778950245000,-150.0,0.00032301,2]
[422443913,1778950245000,-292.5,0.00032548,2]
[422443914,1778950245000,-150.0,0.00032562,2]
[422443912,1778950245000,-165.0,0.0003242,30]
[422443918,1778950245000,-844.75962274,0.00032651,7]
[422443916,1778950245000,-1313.1373347,0.00032651,7]
[422443919,1778950245000,-876.23555339,0.00032651,7]
[422443917,1778950245000,-847.24122966,0.00032651,7]
[422443921,1778950245000,-150.0,0.00032657,2]
[422443924,1778950245000,-219.0,0.00032657,2]
[422443923,1778950245000,-150.0,0.00032657,2]
[422443927,1778950245000,-1066.96249879,0.00032666,7]
[422443925,1778950245000,-951.62349999,0.00032662,7]
[422443920,1778950245000,-867.46545429,0.00032651,7]
[422443928,1778950245000,-858.40281274,0.00032666,7]
[422443926,1778950245000,-1027.49964809,0.00032666,7]
[422443930,1778950245000,-888.81841931,0.00032717,7]
[422443929,1778950245000,-988.88109238,0.00032666,2]
[422443931,1778950245000,-5530.0,0.000328,5]
[422443932,1778950245000,-167.0,0.00032877,120]
[422443933,1778950245000,-1002.08,0.00032877,2]
[422443936,1778950245000,-1000.0,0.00032877,120]
[422443937,1778950245000,-500.0,0.00032877,2]
[422443935,1778950245000,-382.48,0.00032877,2]
[422443938,1778950245000,-500.0,0.00032877,2]
[422443934,1778950245000,-350.02,0.00032877,2]
[422443886,1778950245000,-791.1048739,0.00032062,2]
[422443939,1778950245000,-500.0,0.00032877,2]
[422443909,1778950245000,-150.0,0.00032301,2]
[422443903,1778950245000,-151.0,0.00032138,30]
[422443915,1778950245000,-504.0,0.00032644,8]
[422443907,1778950245000,-349.0,0.00032301,2]
[422443890,1778950245000,-711.05473545,0.00032112,7]
[422443889,1778950245000,-222.03387672,0.00032112,7]
[422443879,1778950245000,-319.47202499,0.00032062,7]
[422443882,1778950245000,-457.4379318,0.00032062,2]
[422443908,1778950245000,-150.0,0.00032301,2]
[422443884,1778950245000,-766.31658316,0.00032062,7]
[422443899,1778950245000,-169.0,0.00032133,30]
[422443883,1778950245000,-438.26051413,0.00032062,5]
[422443878,1778950245000,-329.49937297,0.00032062,7]
[422443876,1778950245000,-576.25883115,0.00032062,7]
[422443881,1778950245000,-610.46374512,0.00032062,7]
[422443887,1778950245000,-504.0,0.00032093,7]
[422443874,1778950245000,-454.21776595,0.00032062,7]
[422443885,1778950245000,-686.72225019,0.00032062,7]
[422443877,1778950245000,-394.10716521,0.00032062,7]
[422443888,1778950245000,-5530.0,0.000321,3]
[422443880,1778950245000,-853.56999904,0.00032062,7]
[422443906,1778950245000,-151.0,0.0003221,5]
[422443898,1778950245000,-162.0,0.00032133,30]
[422443892,1778950245000,-232.65099278,0.00032112,2]
[422443893,1778950245000,-500.0,0.00032119,120]
[422443895,1778950245000,-159.0,0.00032133,30]
[422443900,1778950245000,-687.0,0.00032133,30]
[422443894,1778950245000,-154.0,0.00032133,30]
[422443901,1778950245000,-216.0,0.00032138,30]
[422443897,1778950245000,-516.0,0.00032133,30]
[422443896,1778950245000,-404.0,0.00032133,30]
[422443902,1778950245000,-172.0,0.00032138,30]
[422443904,1778950245000,-316.0,0.00032138,30]
[422443891,1778950245000,-214.76054842,0.00032112,7]
[422443905,1778950245000,-159.34580579,0.00032141,30]
[422443988,1778950246000,-1050.0,0.00033532,2]
[422443987,1778950246000,-1050.0,0.00033532,2]
[422443990,1778950246000,-1050.0,0.00033532,2]
[422443985,1778950246000,-4523.3975716,0.00033353,2]
[422443999,1778950246000,-1051.48266406,0.00033557,7]
[422443981,1778950246000,-172.0,0.00033138,30]
[422443977,1778950246000,-169.0,0.00033133,30]
[422443979,1778950246000,-687.0,0.00033133,30]
[422443982,1778950246000,-151.0,0.00033138,30]
[422443983,1778950246000,-316.0,0.00033138,30]
[422443980,1778950246000,-216.0,0.00033138,30]
[422443986,1778950246000,-1050.0,0.00033532,2]
[422443992,1778950246000,-1050.0,0.00033532,2]
[422443984,1778950246000,-504.0,0.00033194,8]
[422443998,1778950246000,-1013.71154728,0.00033557,7]
[422444011,1778950246000,-154.0,0.00034133,30]
[422443991,1778950246000,-1050.0,0.00033532,2]
[422443995,1778950246000,-570.0,0.00033532,2]
[422443996,1778950246000,-1575.76480164,0.00033557,7]
[422443993,1778950246000,-1050.0,0.00033532,2]
[422443994,1778950246000,-1050.0,0.00033532,2]
[422443997,1778950246000,-1016.68947559,0.00033557,7]
[422444001,1778950246000,-1141.94819999,0.00033568,7]
[422444000,1778950246000,-1040.95854515,0.00033557,7]
[422444012,1778950246000,-159.0,0.00034133,30]
[422444004,1778950246000,-314.06,0.000336,7]
[422444005,1778950246000,-1066.58210317,0.00033625,7]
[422444002,1778950246000,-1280.35499855,0.00033572,7]
[422444013,1778950246000,-404.0,0.00034133,30]
[422443976,1778950246000,-162.0,0.00033133,30]
[422443989,1778950246000,-1050.0,0.00033532,2]
[422443971,1778950246000,-159.0,0.00033133,30]
[422443941,1778950246000,-500.0,0.00032877,2]
[422443972,1778950246000,-404.0,0.00033133,30]
[422443940,1778950246000,-500.0,0.00032877,2]
[422443942,1778950246000,-500.0,0.00032877,2]
[422443943,1778950246000,-414.78489166,0.00032877,2]
[422443944,1778950246000,-274.49614436,0.00032877,30]
[422443945,1778950246000,-274.49115494,0.00032877,60]
[422443956,1778950246000,-290.13,0.000329,120]
[422443948,1778950246000,-950.0,0.00032884,2]
[422443946,1778950246000,-950.0,0.00032884,2]
[422443947,1778950246000,-950.0,0.00032884,2]
[422443954,1778950246000,-950.0,0.00032884,2]
[422443955,1778950246000,-507.0,0.00032884,2]
[422443953,1778950246000,-950.0,0.00032884,2]
[422443950,1778950246000,-950.0,0.00032884,2]
[422443952,1778950246000,-950.0,0.00032884,2]
[422443974,1778950246000,-516.0,0.00033133,30]
[422443949,1778950246000,-950.0,0.00032884,2]
[422443958,1778950246000,-1354.0,0.00032941,2]
[422443968,1778950246000,-1406.168,0.00033027,34]
[422443969,1778950246000,-176.335,0.00033027,34]
[422443957,1778950246000,-300.98575584,0.00032933,14]
[422443961,1778950246000,-417.0,0.00032941,2]
[422443959,1778950246000,-625.0,0.00032941,2]
[422443960,1778950246000,-1223.0,0.00032941,2]
[422443962,1778950246000,-150.0,0.00032941,2]
[422443965,1778950246000,-776.79,0.00033,30]
[422443966,1778950246000,-186.56694993,0.00033,120]
[422443964,1778950246000,-163.87639104,0.00033,120]
[422443963,1778950246000,-3631.0,0.00032941,2]
[422443967,1778950246000,-350.0,0.00033014,5]
[422443970,1778950246000,-154.0,0.00033133,30]
[422443951,1778950246000,-950.0,0.00032884,2]
[422444003,1778950246000,-1186.65731085,0.00033572,2]
[422444077,1778950246000,-314.0,0.000348,2]
[422444010,1778950246000,-350.0,0.00033973,5]
[422444044,1778950246000,-600.0,0.00034261,60]
[422444045,1778950246000,-600.0,0.00034261,60]
[422444041,1778950246000,-600.0,0.00034261,60]
[422444046,1778950246000,-600.0,0.00034261,60]
[422444049,1778950246000,-600.0,0.00034261,60]
[422444048,1778950246000,-600.0,0.00034261,60]
[422444051,1778950246000,-600.0,0.00034261,60]
[422444047,1778950246000,-600.0,0.00034261,60]
[422444050,1778950246000,-600.0,0.00034261,60]
[422444054,1778950246000,-600.0,0.00034261,60]
[422444055,1778950246000,-600.0,0.00034261,60]
[422444056,1778950246000,-600.0,0.00034261,60]
[422444062,1778950246000,-664.1382359,0.00034261,60]
[422444064,1778950246000,-1154.86196114,0.00034481,2]
[422444043,1778950246000,-600.0,0.00034261,60]
[422444065,1778950246000,-400.0,0.00034481,2]
[422444057,1778950246000,-600.0,0.00034261,60]
[422444059,1778950246000,-600.0,0.00034261,60]
[422444066,1778950246000,-400.0,0.00034481,2]
[422444058,1778950246000,-600.0,0.00034261,60]
[422444060,1778950246000,-600.0,0.00034261,60]
[422444063,1778950246000,-504.0,0.00034296,9]
[422444071,1778950246000,-1500.0,0.00034795,2]
[422444072,1778950246000,-354.0,0.00034798,30]
[422444074,1778950246000,-308.0,0.000348,2]
[422444070,1778950246000,-592.91142502,0.00034641,3]
[422444073,1778950246000,-776.79,0.000348,30]
[422444078,1778950246000,-504.0,0.00034846,10]
[422444075,1778950246000,-1000.0,0.000348,2]
[422444008,1778950246000,-163.87639104,0.000339,120]
[422444069,1778950246000,-176.12,0.00034521,120]
[422444053,1778950246000,-600.0,0.00034261,60]
[422444067,1778950246000,-716.13466405,0.00034481,2]
[422444042,1778950246000,-600.0,0.00034261,60]
[422444052,1778950246000,-600.0,0.00034261,60]
[422444009,1778950246000,-186.56694993,0.000339,120]
[422444007,1778950246000,-504.0,0.00033745,9]
[422444015,1778950246000,-162.0,0.00034133,30]
[422444014,1778950246000,-516.0,0.00034133,30]
[422444025,1778950246000,-150.0,0.0003419,2]
[422444016,1778950246000,-169.0,0.00034133,30]
[422444017,1778950246000,-687.0,0.00034133,30]
[422444026,1778950246000,-497.81925541,0.00034235,3]
[422444020,1778950246000,-151.0,0.00034138,30]
[422444022,1778950246000,-150.0,0.00034139,30]
[422444021,1778950246000,-316.0,0.00034138,30]
[422444019,1778950246000,-172.0,0.00034138,30]
[422444018,1778950246000,-216.0,0.00034138,30]
[422444024,1778950246000,-151.0,0.00034182,7]
[422444006,1778950246000,-500.0,0.00033731,120]
[422444027,1778950246000,-497.81925541,0.00034235,3]
[422444023,1778950246000,-165.0,0.00034139,30]
[422444037,1778950246000,-600.0,0.00034261,60]
[422444035,1778950246000,-648.0,0.00034246,120]
[422444033,1778950246000,-650.0,0.00034246,120]
[422444034,1778950246000,-650.0,0.00034246,120]
[422444040,1778950246000,-600.0,0.00034261,60]
[422444031,1778950246000,-1000.0,0.00034246,120]
[422444036,1778950246000,-213.65,0.00034247,120]
[422444030,1778950246000,-1000.0,0.00034246,120]
[422444029,1778950246000,-481.48007302,0.00034239,3]
[422444032,1778950246000,-981.12540329,0.00034246,120]
[422444039,1778950246000,-600.0,0.00034261,60]
[422444028,1778950246000,-370.37001826,0.00034239,3]
[422444038,1778950246000,-600.0,0.00034261,60]
[422444135,1778950247000,-1000.0,0.00036048,2]
[422444136,1778950247000,-400.0,0.00036048,2]
[422444138,1778950247000,-400.0,0.00036048,2]
[422444119,1778950247000,-150.0,0.00035935,2]
[422444113,1778950247000,-482.0,0.00035664,5]
[422444120,1778950247000,-150.0,0.00035935,2]
[422444122,1778950247000,-150.0,0.00035935,2]
[422444118,1778950247000,-150.0,0.00035935,2]
[422444114,1778950247000,-350.0,0.0003589,5]
[422444117,1778950247000,-150.0,0.00035935,2]
[422444115,1778950247000,-150.0,0.00035899,2]
[422444112,1778950247000,-604.0,0.00035664,5]
[422444137,1778950247000,-400.0,0.00036048,2]
[422444121,1778950247000,-150.0,0.00035935,2]
[422444126,1778950247000,-1354.0,0.00035941,2]
[422444127,1778950247000,-625.0,0.00035941,2]
[422444128,1778950247000,-1223.0,0.00035941,2]
[422444130,1778950247000,-3631.0,0.00035941,2]
[422444129,1778950247000,-417.0,0.00035941,2]
[422444124,1778950247000,-217.0,0.00035935,2]
[422444131,1778950247000,-504.0,0.00035947,11]
[422444134,1778950247000,-1000.0,0.00036048,2]
[422444133,1778950247000,-1000.0,0.00036048,2]
[422444139,1778950247000,-154.0,0.00036133,30]
[422444141,1778950247000,-404.0,0.00036133,30]
[422444142,1778950247000,-516.0,0.00036133,30]
[422444144,1778950247000,-169.0,0.00036133,30]
[422444143,1778950247000,-162.0,0.00036133,30]
[422444150,1778950247000,-985.0,0.00036164,2]
[422444123,1778950247000,-150.0,0.00035935,2]
[422444132,1778950247000,-163.87639104,0.00036,120]
[422444116,1778950247000,-150.0,0.00035935,2]
[422444149,1778950247000,-151.0,0.00036153,30]
[422444103,1778950247000,-157.0,0.00035138,30]
[422444082,1778950247000,-350.0,0.00034931,5]
[422444083,1778950247000,-1493.74749831,0.00034932,7]
[422444081,1778950247000,-1182.66347183,0.00034916,7]
[422444079,1778950247000,-1838.39226858,0.00034916,7]
[422444080,1778950247000,-1186.13772152,0.00034916,7]
[422444084,1778950247000,-1384.43352933,0.00034932,2]
[422444087,1778950247000,-850.0,0.00034968,120]
[422444085,1778950247000,-340.11462117,0.00034967,2]
[422444088,1778950247000,-805.0,0.00034968,120]
[422444096,1778950247000,-404.0,0.00035133,30]
[422444089,1778950247000,-1244.34578704,0.00034986,7]
[422444097,1778950247000,-516.0,0.00035133,30]
[422444091,1778950247000,-1000.0,0.00035,5]
[422444095,1778950247000,-159.0,0.00035133,30]
[422444111,1778950247000,-164.63041949,0.00035616,2]
[422444094,1778950247000,-154.0,0.00035133,30]
[422444086,1778950247000,-850.0,0.00034968,120]
[422444090,1778950247000,-163.87639104,0.00035,120]
[422444098,1778950247000,-162.0,0.00035133,30]
[422444107,1778950247000,-500.0,0.00035343,120]
[422444099,1778950247000,-169.0,0.00035133,30]
[422444109,1778950247000,-227.11,0.00035605,120]
[422444108,1778950247000,-504.0,0.00035397,11]
[422444101,1778950247000,-216.0,0.00035138,30]
[422444104,1778950247000,-316.0,0.00035138,30]
[422444106,1778950247000,-314.06,0.000352,7]
[422444102,1778950247000,-172.0,0.00035138,30]
[422444100,1778950247000,-687.0,0.00035133,30]
[422444110,1778950247000,-382.48,0.00035616,2]
[422444105,1778950247000,-1500.0,0.000352,7]
[422444093,1778950247000,-208.44072055,0.00035,120]
[422444140,1778950247000,-159.0,0.00036133,30]
[422444181,1778950247000,-300.0,0.00036266,2]
[422444148,1778950247000,-316.0,0.00036138,30]
[422444182,1778950247000,-300.0,0.00036266,2]
[422444184,1778950247000,-1067.23644452,0.00036266,2]
[422444187,1778950247000,-726.26438584,0.00036266,2]
[422444186,1778950247000,-313.13873214,0.00036266,2]
[422444185,1778950247000,-893.66998664,0.00036266,2]
[422444189,1778950247000,-301.8794073,0.00036266,2]
[422444188,1778950247000,-300.0,0.00036266,2]
[422444183,1778950247000,-527.89629163,0.00036266,2]
[422444212,1778950247000,-1791.04776837,0.00036266,2]
[422444194,1778950247000,-300.0,0.00036266,2]
[422444204,1778950247000,-300.0,0.00036266,2]
[422444205,1778950247000,-300.0,0.00036266,2]
[422444195,1778950247000,-300.0,0.00036266,2]
[422444206,1778950247000,-300.0,0.00036266,2]
[422444179,1778950247000,-604.63991303,0.00036266,2]
[422444193,1778950247000,-528.81395582,0.00036266,2]
[422444199,1778950247000,-300.0,0.00036266,2]
[422444197,1778950247000,-300.0,0.00036266,2]
[422444198,1778950247000,-949.2762563,0.00036266,2]
[422444202,1778950247000,-344.08088588,0.00036266,2]
[422444203,1778950247000,-527.04605611,0.00036266,2]
[422444201,1778950247000,-300.0,0.00036266,2]
[422444200,1778950247000,-1912.98732614,0.00036266,2]
[422444208,1778950247000,-309.68315104,0.00036266,2]
[422444209,1778950247000,-300.0,0.00036266,2]
[422444210,1778950247000,-864.71533708,0.00036266,2]
[422444214,1778950247000,-300.0,0.00036266,2]
[422444213,1778950247000,-300.0,0.00036266,2]
[422444211,1778950247000,-300.0,0.00036266,2]
[422444145,1778950247000,-687.0,0.00036133,30]
[422444196,1778950247000,-300.0,0.00036266,2]
[422444191,1778950247000,-300.0,0.00036266,2]